bitfinex-derivatives/quotes_BNBF0:USTF0_20250329
["timestamp","ask_amount","ask_price","bid_price","bid_amount"]
[1743216743792,0.32471749,615.92,615.15,4.466]
[1743216743995,0.29889668,615.91,615.15,4.466]
[1743216744195,0.32472804,615.9,615.15,4.466]
[1743216744390,0.29889668,615.89,615.15,4.466]
[1743216744595,0.32473858,615.88,615.15,4.466]
[1743216745096,0.29881037,615.87,615.15,4.466]
[1743216745392,0.32474913,615.86,615.15,4.466]
[1743216745595,0.29881037,615.85,615.15,4.466]
[1743216745896,0.32475967,615.84,615.15,4.466]
[1743216746089,0.29881037,615.83,615.15,4.466]
[1743216746294,0.32477022,615.82,615.15,4.466]
[1743216746495,0.29881037,615.81,615.15,4.466]
[1743216746695,0.32478077,615.8,615.15,4.466]
[1743216746898,0.29881037,615.79,615.15,4.466]
[1743216747095,0.32479132,615.78,615.15,4.466]
[1743216751300,0.58158831,615.77,615.15,4.466]
[1743216751494,0.28280612,615.77,615.15,4.466]
[1743216751899,0.62358708,615.76,615.15,4.466]
[1743216752096,0.62359235,615.75,615.15,4.466]
[1743216752292,0.29878521,615.74,615.15,4.466]
[1743216754502,0.28293718,615.73,615.15,4.466]
[1743216754694,0.29878521,615.72,615.15,4.466]
[1743216755698,0.32482824,615.71,615.15,4.466]
[1743216755903,0.29878521,615.7,615.15,4.466]
[1743216756099,0.32483879,615.69,615.15,4.466]
[1743216756297,0.29878521,615.68,615.15,4.466]
[1743216757196,0.28295098,615.67,615.15,4.466]
[1743216757400,0.62375701,615.66,615.15,4.466]
[1743216757697,0.62376229,615.65,615.15,4.466]
[1743216757901,0.29890239,615.64,615.15,4.466]
[1743216758800,0.32487045,615.63,615.15,4.466]
[1743216758996,0.29890239,615.62,615.15,4.466]
[1743216759198,0.32488101,615.61,615.15,4.466]
[1743216759398,0.29890239,615.6,615.15,4.466]
[1743216759598,0.32489156,615.59,615.15,4.466]
[1743216759800,0.29890239,615.58,615.15,4.466]
[1743216760101,0.62379923,615.58,615.15,4.466]
[1743216760302,0.58186488,615.57,615.15,4.466]
[1743216760498,0.29890239,615.56,615.15,3.671]
[1743216760699,0.29890239,615.56,615.15,1.011]
[1743216761896,0.28296249,615.57,615.15,1.011]
[1743216762102,0.32489684,615.58,615.15,1.011]
[1743216763101,0.32489684,615.58,615.15,1.921]
[1743216763301,0.28289808,615.57,615.15,1.921]
[1743216763903,0.3249074,615.56,615.15,1.921]
[1743216764298,0.3249074,615.56,615.15,0.91]
[1743216766200,0.28289233,615.55,615.15,0.91]
[1743216768105,0.3249074,615.56,615.15,0.91]
[1743216768609,0.28283255,615.55,615.15,0.91]
[1743216771108,0.3249074,615.56,615.15,0.91]
[1743216772309,0.28281531,615.55,615.15,0.91]
[1743216777111,2.70420029,616.37,615.15,0.91]
[1743216777413,0.28279693,615.54,615.15,0.91]
[1743216777608,0.32449095,616.35,615.15,0.91]
[1743216777813,0.29874177,616.34,615.15,0.91]
[1743216778211,0.32450674,616.32,615.15,0.91]
[1743216778408,0.29874177,616.31,615.15,0.91]
[1743216778610,0.32450674,616.32,615.15,0.91]
[1743216778812,0.29876009,616.31,615.15,0.91]
[1743216779115,0.32452254,616.29,615.15,0.91]
[1743216779414,0.29876009,616.28,615.15,0.91]
[1743216779609,0.32453834,616.26,615.15,0.91]
[1743216779812,0.29876009,616.25,615.15,0.91]
[1743216780012,0.32455414,616.23,615.15,0.91]
[1743216780207,0.29876009,616.22,615.15,0.91]
[1743216780413,0.32456994,616.2,615.15,0.91]
[1743216780614,0.29876009,616.19,615.15,0.91]
[1743216780815,0.32458574,616.17,615.15,0.91]
[1743216781013,0.29876009,616.16,615.15,0.91]
[1743216781209,0.32460155,616.14,615.15,0.91]
[1743216781409,0.29876009,616.13,615.15,0.91]
[1743216781612,0.32461735,616.11,615.15,0.91]
[1743216781812,0.29876009,616.1,615.15,0.91]
[1743216782108,0.32463316,616.08,615.15,0.91]
[1743216782309,0.29876009,616.07,615.15,0.91]
[1743216782816,0.32464897,616.05,615.15,0.91]
[1743216783016,0.29876009,616.04,615.15,0.91]
[1743216783914,0.32466478,616.02,615.15,0.91]
[1743216784109,0.29876009,616.01,615.15,0.91]
[1743216784311,0.32467532,616.0,615.15,0.91]
[1743216784515,0.29876009,615.99,615.15,1.635]
[1743216784711,0.32468586,615.98,615.15,1.635]
[1743216784916,0.29876009,615.97,615.15,1.635]
[1743216785116,0.3246964,615.96,615.15,1.635]
[1743216785312,0.29878341,615.95,615.15,1.635]
[1743216786018,0.32470695,615.94,615.15,2.587]
[1743216786213,0.29878341,615.93,615.15,2.587]
[1743216786621,0.32471749,615.92,615.15,2.587]
[1743216787120,0.29874282,615.91,615.15,2.587]
[1743216787419,0.28274982,615.91,615.15,2.587]
[1743216790221,0.32472804,615.9,615.15,2.587]
[1743216793425,0.28276016,615.89,615.15,2.587]
[1743216794426,0.32473858,615.88,615.15,2.587]
[1743216794621,0.29879105,615.87,615.15,2.587]
[1743216794821,0.32474913,615.86,615.15,2.587]
[1743216795030,0.29879105,615.85,615.15,2.587]
[1743216795322,0.32475967,615.84,615.15,2.587]
[1743216795523,0.29879105,615.83,615.15,2.587]
[1743216795725,0.32477022,615.82,615.15,2.587]
[1743216795920,0.29882911,615.81,615.15,2.587]
[1743216796126,0.32478077,615.8,615.15,2.587]
[1743216796527,0.29882911,615.79,615.15,2.587]
[1743216796724,0.32479132,615.78,615.15,2.587]
[1743216797025,0.29882911,615.77,615.15,2.587]
[1743216797427,0.29882911,615.77,615.15,3.955]
[1743216798224,0.32480187,615.76,615.15,3.955]
[1743216798529,0.29882911,615.75,615.15,3.955]
[1743216798731,0.32481242,615.74,615.15,3.955]
[1743216798931,0.29882911,615.73,615.15,3.955]
[1743216799231,0.32482297,615.72,615.15,3.955]
[1743216799422,0.29887366,615.71,615.15,3.955]
[1743216799625,0.32483352,615.7,615.15,3.955]
[1743216799826,0.29887366,615.69,615.15,3.955]
[1743216800028,0.32484407,615.68,615.15,3.955]
[1743216800225,0.29887366,615.67,615.15,3.955]
[1743216800429,0.32485462,615.66,615.15,3.955]
[1743216801527,0.28292683,615.65,615.15,3.955]
[1743216801732,0.32486518,615.64,615.15,3.955]
[1743216803127,0.29887887,615.63,615.15,3.955]
[1743216803627,0.32486518,615.64,615.15,3.955]
[1743216804133,0.29899209,615.63,615.15,3.955]
[1743216804331,0.32487573,615.62,615.15,3.955]
[1743216804531,0.29899209,615.61,615.15,3.955]
[1743216804731,0.32488628,615.6,615.15,3.955]
[1743216804926,0.29901632,615.59,615.15,3.955]
[1743216805131,0.32489684,615.58,615.15,3.955]
[1743216805433,0.29901632,615.57,615.15,3.955]
[1743216805629,0.3249074,615.56,615.15,3.955]
[1743216805831,0.29901632,615.55,615.15,2.093]
[1743216806027,0.32491795,615.54,615.15,2.093]
[1743216806226,0.29901632,615.53,615.15,2.093]
[1743216806427,0.32492851,615.52,615.15,2.093]
[1743216806631,0.29901632,615.51,615.15,2.093]
[1743216806828,0.32493907,615.5,615.15,2.093]
[1743216807026,0.29901632,615.49,615.15,2.093]
[1743216807233,0.32494963,615.48,615.15,2.093]
[1743216807432,0.29901632,615.47,615.15,2.093]
[1743216807631,0.32496019,615.46,615.15,2.093]
[1743216807834,0.29901632,615.45,615.15,2.093]
[1743216808135,0.32497075,615.44,615.15,2.093]
[1743216808432,0.29901632,615.43,615.15,2.093]
[1743216808633,0.32498131,615.42,615.15,2.093]
[1743216809034,0.29901632,615.41,615.15,2.093]
[1743216809237,0.32499187,615.4,615.15,2.093]
[1743216809437,0.29901632,615.39,615.15,2.093]
[1743216809629,0.32500243,615.38,615.15,2.093]
[1743216809831,0.29901632,615.37,615.15,2.093]
[1743216810035,0.325013,615.36,615.15,2.093]
[1743216810337,0.29901632,615.35,615.15,2.093]
[1743216811436,0.28303498,615.34,615.15,2.093]
[1743216811633,0.29901632,615.33,615.15,2.093]
[1743216812435,0.29901632,615.33,615.15,0.725]
[1743216813035,0.28303498,615.34,615.15,0.725]
[1743216819142,0.325013,615.36,615.15,0.725]
[1743216819542,0.28302577,615.33,615.15,0.725]
[1743216822149,0.325013,615.36,615.15,0.725]
[1743216822543,0.28302577,615.32,615.15,0.725]
[1743216824651,0.32503941,615.31,615.15,0.725]
[1743216826450,0.28292568,615.3,615.15,0.725]
[1743216826653,0.60797037,615.3,615.15,0.725]
[1743216828147,0.29904006,615.29,615.15,0.725]
[1743216828346,0.58209806,615.29,615.15,0.725]
[1743216828650,0.29904006,615.28,615.15,0.725]
[1743216829051,0.62409531,615.28,615.15,0.725]
[1743216829356,0.29904006,615.27,615.15,0.725]
[1743216829556,0.29904006,615.27,615.0,0.974]
[1743216830857,0.32505525,615.28,615.0,0.974]
[1743216832456,0.2829993,615.27,615.0,0.974]
[1743216834257,0.32505525,615.28,615.0,0.974]
[1743216835362,0.28299585,615.27,615.0,0.974]
[1743216837065,0.32505525,615.28,615.0,0.974]
[1743216837360,0.28306836,615.26,615.0,0.974]
[1743216837963,0.28306836,615.26,614.91,1.122]
[1743216840164,0.32505525,615.28,614.91,1.122]
[1743216841472,0.28296134,615.27,614.91,1.122]
[1743216843065,0.32505525,615.28,614.91,1.122]
[1743216844475,0.28298205,615.27,614.91,1.122]
[1743216846171,0.32505525,615.28,614.91,1.122]
[1743216846669,0.283058,615.26,614.91,1.122]
[1743216849180,0.32505525,615.28,614.91,1.122]
[1743216849378,0.28306721,615.25,614.91,1.122]
[1743216852176,0.32505525,615.28,614.91,1.122]
[1743216853479,0.28303613,615.27,614.91,1.122]
[1743216855181,0.32505525,615.28,614.91,1.122]
[1743216855384,0.32506054,615.27,614.91,1.122]
[1743216856285,0.28302808,615.26,614.91,1.122]
[1743216856592,0.6080939,615.26,614.91,1.122]
[1743216858187,0.32506582,615.26,614.91,1.122]
[1743216859483,0.28302002,615.25,614.91,1.122]
[1743216860882,0.29901836,615.24,614.91,1.122]
[1743216861385,0.58208903,615.23,614.91,1.122]
[1743216861582,0.29901836,615.22,614.91,1.122]
[1743216861888,0.28307067,615.23,614.91,1.122]
[1743216862081,0.29900552,615.22,614.91,1.122]
[1743216862683,0.28307067,615.23,614.91,1.122]
[1743216864088,0.32506582,615.26,614.91,1.122]
[1743216865388,0.28300046,615.25,614.91,1.122]
[1743216865986,0.32507639,615.24,614.91,1.122]
[1743216867290,0.29909218,615.23,614.91,1.122]
[1743216867486,0.32508696,615.22,614.91,1.122]
[1743216869088,0.29909261,615.21,614.91,1.122]
[1743216869290,0.32509752,615.2,614.91,1.122]
[1743216869487,0.29909261,615.19,614.91,1.122]
[1743216869685,0.62419542,615.19,614.91,1.122]
[1743216869991,0.32510281,615.19,614.91,1.122]
[1743216870393,0.29910323,615.18,614.91,1.122]
[1743216870793,0.62421132,615.18,614.91,1.122]
[1743216871094,0.32510809,615.18,614.91,1.122]
[1743216871693,0.29910502,615.17,614.91,1.122]
[1743216872496,0.32510809,615.18,614.91,1.122]
[1743216875897,0.28311903,615.17,614.91,1.122]
[1743216876196,0.32511866,615.16,614.91,1.122]
[1743216878397,0.32511866,615.16,614.84,0.889]
[1743216880496,0.28300851,615.15,614.84,0.889]
[1743216880695,0.60813246,615.15,614.84,0.889]
[1743216883397,0.60813246,615.15,614.81,0.804]
[1743216888102,0.32512395,615.15,614.81,0.804]
[1743216888293,0.32512395,615.15,614.79,1.21]
[1743216888498,0.28303038,615.14,614.79,1.21]
[1743216894112,0.32512395,615.15,614.79,1.21]
[1743216894604,0.28306261,615.14,614.79,1.21]
[1743216897215,0.32512395,615.15,614.79,1.21]
[1743216897415,0.32512395,615.15,614.73,0.905]
[1743216898410,0.28308448,615.14,614.73,0.905]
[1743216898614,0.28308448,615.14,614.72,2.396]
[1743216900113,0.32512395,615.15,614.72,2.396]
[1743216900513,0.28309715,615.14,614.72,2.396]
[1743216907724,0.32513452,615.13,614.72,2.396]
[1743216909423,0.28317201,615.12,614.72,2.396]
[1743216909625,0.32514509,615.11,614.72,2.396]
[1743216910222,0.32514509,615.11,614.72,1.073]
[1743216912624,0.28315819,615.1,614.72,1.073]
[1743216915127,0.32514509,615.11,614.72,1.073]
[1743216915528,0.28315934,615.09,614.72,1.073]
[1743216918327,0.32514509,615.11,614.72,1.073]
[1743216918527,0.28314322,615.08,614.72,1.073]
[1743216921131,0.32514509,615.11,614.72,1.073]
[1743216921627,0.28314322,615.07,614.72,1.073]
[1743216923833,0.28314322,615.07,614.71,1.179]
[1743216924235,0.32514509,615.11,614.71,1.179]
[1743216925433,0.28307642,615.1,614.71,1.179]
[1743216926237,0.6082268,615.1,614.71,1.179]
[1743216927133,0.32515038,615.1,614.71,1.179]
[1743216928133,0.29911746,615.09,614.71,1.179]
[1743216928635,0.58223879,615.09,614.71,1.179]
[1743216928837,0.28312133,615.09,614.71,1.179]
[1743216930139,0.32515038,615.1,614.71,1.179]
[1743216931434,0.28312709,615.09,614.71,1.179]
[1743216933143,0.32515038,615.1,614.71,1.179]
[1743216934441,0.28310406,615.09,614.71,1.179]
[1743216936338,0.32515038,615.1,614.71,1.179]
[1743216937344,0.28308794,615.09,614.71,1.179]
[1743216942243,0.32515038,615.1,614.71,1.179]
[1743216942443,0.28317778,615.08,614.71,1.179]
[1743216947557,0.28317778,615.08,614.67,1.259]
[1743216948262,0.32515038,615.1,614.67,1.259]
[1743216949457,0.28310175,615.09,614.67,1.259]
[1743216951162,0.60003229,615.76,614.67,1.259]
[1743216951357,0.29912718,615.76,614.67,1.259]
[1743216951560,0.28310175,615.08,614.67,1.259]
[1743216951959,2.53341351,615.78,614.67,1.259]
[1743216952163,0.29912786,615.77,614.67,1.259]
[1743216952764,2.43534484,615.75,614.67,1.259]
[1743216952964,0.29912786,615.74,614.67,1.259]
[1743216954564,2.43534484,615.75,614.67,1.259]
[1743216954765,0.2991382,615.74,614.67,1.259]
[1743216954964,2.83266319,615.74,614.67,1.259]
[1743216955165,0.2991382,615.73,614.67,1.259]
[1743216955564,0.2991382,615.72,614.67,1.259]
[1743216955760,0.2991382,615.74,614.67,2.395]
[1743216955961,0.2991382,615.73,614.67,2.395]
[1743216956162,0.2991382,615.72,614.67,2.395]
[1743216956464,0.2991382,615.74,614.67,2.395]
[1743216956766,2.73448304,615.73,614.67,2.395]
[1743216956960,0.2991382,615.72,614.67,2.395]
[1743216958164,2.23251942,615.72,614.67,2.395]
[1743216958368,2.43534484,615.7,614.67,2.395]
[1743216958763,0.2991382,615.69,614.67,2.395]
[1743216961167,0.28312479,615.68,614.67,2.395]
[1743216961371,0.2991382,615.67,614.67,2.395]
[1743216962166,0.2991382,615.68,614.67,2.395]
[1743216962370,0.2991382,615.67,614.67,2.395]
[1743216962570,0.2991382,615.69,614.67,2.395]
[1743216962870,0.2991382,615.68,614.67,2.395]
[1743216963171,0.29918875,615.67,614.67,2.395]
[1743216963365,0.29918875,615.7,614.67,2.395]
[1743216963769,2.43534484,615.69,614.67,2.395]
[1743216963966,0.29918875,615.68,614.67,2.395]
[1743216964271,0.29918875,615.67,614.67,2.395]
[1743216964471,0.29918875,615.68,614.67,2.395]
[1743216964971,2.83290306,615.68,614.67,2.395]
[1743216965173,2.43534484,615.52,614.67,2.395]
[1743216965368,0.29918875,615.51,614.67,2.395]
[1743216967273,0.29918875,615.5,614.67,2.395]
[1743216967469,0.29918875,615.55,614.67,2.395]
[1743216967768,0.29918875,615.54,614.67,1.136]
[1743216967972,0.29918875,615.55,614.67,1.136]
[1743216968769,2.43534484,615.53,614.67,1.136]
[1743216969072,0.29927215,615.52,614.67,1.136]
[1743216970974,2.43534484,615.51,614.67,1.136]
[1743216971174,0.29927215,615.5,614.67,1.136]
[1743216972971,0.29927215,615.49,614.67,1.136]
[1743216973176,0.29927215,615.57,614.67,1.136]
[1743216973474,0.29927215,615.56,614.67,1.136]
[1743216973676,0.29927215,615.57,614.67,1.136]
[1743216973976,0.29927215,615.56,614.67,1.136]
[1743216974281,0.29927215,615.57,614.67,1.136]
[1743216974570,0.29927215,615.56,614.67,1.136]
[1743216974774,0.29927215,615.57,614.67,1.136]
[1743216974977,0.29927215,615.56,614.67,1.136]
[1743216975170,0.29927215,615.57,614.67,1.136]
[1743216975375,2.70420029,615.58,614.67,1.136]
[1743216975572,0.299197,615.56,614.67,1.136]
[1743216975773,0.299197,615.55,614.67,1.136]
[1743216976176,0.299197,615.54,614.67,1.136]
[1743216976372,0.299197,615.57,614.67,1.136]
[1743216976577,2.52783005,615.74,614.67,1.136]
[1743216976578,0.299197,615.56,614.67,1.136]
[1743216976774,0.299197,615.73,614.67,1.136]
[1743216976974,2.43534484,615.71,614.67,1.136]
[1743216977179,0.299197,615.7,614.67,1.136]
[1743216977376,0.32484407,615.68,614.67,1.136]
[1743216977777,0.29914209,615.67,614.67,1.136]
[1743216978278,0.3248599,615.65,614.67,1.136]
[1743216978480,0.29914209,615.64,614.67,1.136]
[1743216979580,0.32487573,615.62,614.67,1.136]
[1743216979780,0.29914209,615.61,614.67,1.136]
[1743216979974,0.32489156,615.59,614.67,1.136]
[1743216980178,0.29914209,615.58,614.67,1.136]
[1743216981281,0.3249074,615.56,614.67,1.136]
[1743216981580,0.29914209,615.55,614.67,1.136]
[1743216981782,0.32492323,615.53,614.67,1.136]
[1743216982076,0.29914209,615.52,614.67,1.136]
[1743216982281,0.32493907,615.5,614.67,1.136]
[1743216982480,0.29914209,615.49,614.67,1.136]
[1743216982684,0.32495491,615.47,614.67,1.136]
[1743216982982,0.29914209,615.46,614.67,1.136]
[1743216983277,0.32496547,615.45,614.67,1.136]
[1743216983482,0.29914209,615.44,614.67,1.136]
[1743216983683,0.32497603,615.43,614.67,1.136]
[1743216983884,0.29914209,615.42,614.67,1.136]
[1743216984084,0.32498659,615.41,614.67,1.136]
[1743216984297,0.29914209,615.4,614.67,1.136]
[1743216984489,0.32499715,615.39,614.67,1.136]
[1743216984685,0.29914209,615.38,614.67,1.136]
[1743216984891,0.32500771,615.37,614.67,1.136]
[1743216985186,0.29914209,615.36,614.67,1.136]
[1743216985387,0.32501828,615.35,614.67,1.136]
[1743216985590,0.29914209,615.34,614.67,1.136]
[1743216985992,0.32502884,615.33,614.67,1.136]
[1743216986190,0.29914209,615.32,614.67,1.136]
[1743216986387,0.32503941,615.31,614.67,1.136]
[1743216986591,0.29914209,615.3,614.67,1.136]
[1743216986893,0.32504997,615.29,614.67,1.136]
[1743216987091,0.29914209,615.28,614.67,1.136]
[1743216987291,0.32506054,615.27,614.67,2.122]
[1743216987587,0.29914209,615.26,614.67,2.122]
[1743216987787,0.3250711,615.25,614.67,2.122]
[1743216987991,0.29914209,615.24,614.67,2.122]
[1743216988294,0.32508167,615.23,614.67,2.122]
[1743216988494,0.29914209,615.22,614.67,2.122]
[1743216988789,0.32509224,615.21,614.67,2.122]
[1743216988994,0.29914209,615.2,614.67,2.122]
[1743216989292,0.32510281,615.19,614.67,2.122]
[1743216989492,0.29914209,615.18,614.67,2.122]
[1743216989696,0.32511338,615.17,614.67,2.122]
[1743216989895,0.29914209,615.16,614.67,2.122]
[1743216990096,0.32512395,615.15,614.67,2.122]
[1743216990295,0.29914209,615.14,614.67,2.122]
[1743216990496,0.32513452,615.13,614.67,2.122]
[1743216990694,0.29914209,615.12,614.67,2.122]
[1743216990995,0.32514509,615.11,614.67,2.122]
[1743216991596,0.2831893,615.1,614.67,2.122]
[1743216991790,0.62433844,615.09,614.67,2.122]
[1743216991995,0.62434373,615.08,614.67,2.08]
[1743216992195,0.62434902,615.07,614.67,2.08]
[1743216992393,0.6243543,615.06,614.67,2.08]
[1743216992590,0.32517681,615.05,614.67,2.08]
[1743216993597,0.28321004,615.04,614.67,2.08]
[1743216993892,0.32518738,615.03,614.67,2.08]
[1743216994193,0.29923605,615.02,614.67,2.08]
[1743216994398,0.32519796,615.01,614.67,2.08]
[1743216996494,0.28324001,615.0,614.67,2.08]
[1743216996700,0.32520853,614.99,614.67,2.08]
[1743216999499,0.28324462,614.98,614.67,2.08]
[1743216999796,0.32521911,614.97,614.67,2.08]
[1743217001897,0.29924358,614.96,614.67,2.08]
[1743217002097,0.32522969,614.95,614.67,2.08]
[1743217002501,0.60847776,614.95,614.67,2.08]
[1743217003803,0.29924652,614.94,614.67,2.08]
[1743217004103,0.60847776,614.95,614.67,2.08]
[1743217005306,0.32522969,614.95,614.67,2.08]
[1743217006506,0.28315473,614.94,614.67,2.08]
[1743217006706,0.32524027,614.93,614.67,2.08]
[1743217008408,0.32524027,614.93,614.67,1.094]
[1743217008608,0.28326075,614.92,614.67,1.094]
[1743217008907,0.32525084,614.91,614.67,1.094]
[1743217009905,0.29926573,614.9,614.67,1.094]
[1743217010100,0.32525084,614.91,614.67,1.094]
[1743217010601,0.29929995,614.9,614.67,1.094]
[1743217010801,0.32526142,614.89,614.67,1.094]
[1743217011711,0.28327459,614.88,614.67,1.094]
[1743217011902,0.325272,614.87,614.67,1.094]
[1743217013713,0.29929901,614.86,614.56,1.285]
[1743217013908,0.32528258,614.85,614.56,1.285]
[1743217014115,0.29929901,614.84,614.55,0.1325777]
[1743217014308,0.32529317,614.83,614.46,1.08]
[1743217014812,0.29929901,614.82,614.46,1.08]
[1743217018422,0.28333686,614.81,614.46,1.08]
[1743217018719,0.29929901,614.8,614.46,1.08]
[1743217019118,0.29937976,614.79,614.46,1.08]
[1743217019520,0.29937976,614.78,614.46,1.08]
[1743217019719,0.29937976,614.8,614.46,1.08]
[1743217020321,0.29937976,614.82,614.46,1.08]
[1743217020523,0.29937976,614.79,614.46,1.08]
[1743217020717,0.29937976,614.78,614.46,1.08]
[1743217020916,0.62470467,614.77,614.46,1.08]
[1743217021121,0.29937976,614.76,614.46,1.08]
[1743217021424,0.58273969,614.76,614.46,1.08]
[1743217021824,0.62471526,614.75,614.46,1.08]
[1743217022023,0.29937976,614.74,614.46,1.08]
[1743217022223,0.32534608,614.73,614.46,1.08]
[1743217022419,0.29937976,614.72,614.46,1.08]
[1743217023619,0.32535667,614.71,614.46,1.08]
[1743217023824,0.29937976,614.7,614.46,1.08]
[1743217024519,0.28336685,614.69,614.46,1.08]
[1743217024724,0.29937976,614.68,614.46,1.08]
[1743217025117,0.28336685,614.69,614.46,1.08]
[1743217025323,0.29941398,614.68,614.46,1.08]
[1743217025823,0.29941398,614.68,614.44,1.16756738]
[1743217026023,0.29941398,614.7,613.58,0.829]
[1743217026219,0.29941398,614.69,613.58,0.829]
[1743217026423,0.29941398,614.7,613.58,0.829]
[1743217026726,0.32535667,614.71,613.58,0.829]
[1743217026727,0.29941398,614.69,613.58,0.829]
[1743217027123,0.29941398,614.68,613.58,0.829]
[1743217027426,0.29941398,614.67,613.58,0.829]
[1743217027627,0.29941398,614.66,613.58,0.829]
[1743217027828,0.29941398,614.65,613.58,0.829]
[1743217028026,0.89909253,614.65,613.57,1.294]
[1743217028222,0.89909253,614.64,613.56,0.30554394]
[1743217028427,0.89909253,614.63,613.24,0.922]
[1743217028627,0.29941398,614.62,613.24,0.922]
[1743217028835,0.29941398,614.61,613.24,0.922]
[1743217029035,0.29941398,614.6,613.24,0.922]
[1743217029334,0.29941398,614.59,613.24,0.922]
[1743217029535,2.43534484,614.15,613.24,0.922]
[1743217029830,0.29941398,614.14,613.24,0.922]
[1743217030029,0.29941398,614.13,613.24,0.922]
[1743217030427,0.29941398,614.12,613.24,0.922]
[1743217030637,0.29941398,614.11,613.24,0.6380505]
[1743217030832,0.29941398,614.1,613.24,0.6380505]
[1743217031038,0.89909253,614.09,613.24,0.6380505]
[1743217031342,0.89909253,614.08,613.24,0.6380505]
[1743217031533,0.29941398,614.07,613.24,0.6380505]
[1743217031739,0.29941398,614.5,612.94,1.222]
[1743217031934,0.29941398,614.49,612.94,1.222]
[1743217032134,0.32548375,614.47,612.94,1.222]
[1743217032339,0.32548375,614.47,612.95,1.124]
[1743217032340,0.29941398,614.46,612.95,1.124]
[1743217032539,0.29941398,614.45,612.95,1.124]
[1743217032734,0.29941398,614.44,612.95,1.124]
[1743217032941,0.29941398,614.43,612.95,1.124]
[1743217033138,0.29941398,614.42,612.95,1.124]
[1743217033335,0.29941398,614.41,612.95,1.124]
[1743217033543,0.29941398,614.4,612.95,1.124]
[1743217033835,0.29941398,614.39,612.95,1.124]
[1743217034040,0.29941398,614.38,612.95,1.124]
[1743217034540,0.29941398,614.37,612.95,1.124]
[1743217034938,0.29941398,614.36,612.95,1.124]
[1743217035139,0.29941398,614.35,612.95,1.124]
[1743217035335,0.29941398,614.34,612.95,1.124]
[1743217035532,0.29941398,614.33,612.95,1.124]
[1743217035738,0.29941398,614.32,612.95,1.124]
[1743217035939,0.29941398,614.33,612.95,1.124]
[1743217036240,0.29941398,614.32,612.95,1.124]
[1743217036441,0.29941398,614.31,612.95,1.124]
[1743217036638,0.29941398,614.3,612.95,1.124]
[1743217036940,0.29941398,614.29,612.95,1.124]
[1743217037134,0.29941398,614.28,612.95,1.124]
[1743217037441,0.29941398,614.27,612.95,1.124]
[1743217037641,0.29941398,614.26,612.95,1.124]
[1743217038139,0.29941398,614.25,612.96,0.801]
[1743217038440,0.29941398,614.24,612.96,0.801]
[1743217038642,0.29941398,614.23,612.96,0.801]
[1743217038839,0.29941398,614.22,612.96,0.801]
[1743217039036,0.29941398,614.21,612.96,0.801]
[1743217039240,0.29941398,614.2,612.96,0.801]
[1743217039543,0.29941398,614.19,612.96,0.801]
[1743217039743,0.29941398,614.18,612.96,0.801]
[1743217039943,0.29941398,614.17,612.96,0.801]
[1743217040144,0.32565334,614.15,612.96,0.801]
[1743217040342,0.29941398,614.14,612.96,0.801]
[1743217040537,0.29941398,614.13,612.96,0.801]
[1743217040843,0.32567455,614.11,612.96,0.801]
[1743217041046,0.29941398,614.1,612.96,0.801]
[1743217041246,0.32569046,614.08,612.96,0.801]
[1743217041545,0.29941398,614.07,612.96,0.801]
[1743217041740,0.32570637,614.05,612.96,0.801]
[1743217041938,0.29941398,614.04,612.96,0.801]